bitfinex-derivatives/quotes_BTCF0:USTF0_20241128
["timestamp","ask_amount","ask_price","bid_price","bid_amount"]
[1732812921854,0.3158,94998.0,94982.0,0.052623]
[1732812922055,0.3608,94999.0,94982.0,0.052623]
[1732812922056,0.052622,94983.0,94982.0,0.052623]
[1732812922266,0.052622,94983.0,94982.0,0.07642609]
[1732812922475,0.052619,94988.0,94987.0,0.05262]
[1732812922771,0.052619,94988.0,94987.0,0.07642309]
[1732812923257,0.17492,94989.0,94987.0,0.02380309]
[1732812923459,0.001,94998.0,94988.0,0.02380309]
[1732812923460,0.053614,94998.0,94988.0,0.02380309]
[1732812923660,0.053614,94998.0,94986.0,0.00202984]
[1732812923661,0.228534,94998.0,94997.0,0.052614]
[1732812923871,0.228534,94998.0,94997.0,0.07641709]
[1732812924169,0.17592,94998.0,94997.0,0.04871709]
[1732812924468,0.001,94998.0,94997.0,0.04871709]
[1732812924769,0.0687099,95010.0,94997.0,0.04871709]
[1732812924770,0.3608,95021.0,95020.0,0.052602]
[1732812924965,0.3608,95021.0,95020.0,0.07640509]
[1732812925476,0.02106028,95024.0,95023.0,0.0526]
[1732812925775,0.02106028,95024.0,95023.0,0.1079842]
[1732812925776,7.781e-05,95024.0,95023.0,0.1079842]
[1732812925971,7.781e-05,95024.0,95023.0,0.10811172]
[1732812926173,7.781e-05,95024.0,95023.0,0.29687356]
[1732812926371,7.781e-05,95024.0,95023.0,0.10811172]
[1732812926868,1.5,95050.0,95023.0,0.37123172]
[1732812927074,0.17492,95052.0,95038.0,0.3608]
[1732812927272,0.052587,95048.0,95047.0,0.052585]
[1732812927462,0.052587,95048.0,95047.0,0.2410208]
[1732812927663,0.052587,95048.0,95047.0,0.052585]
[1732812927987,0.05267336,95048.0,95047.0,0.2410208]
[1732812928366,0.05267336,95048.0,95047.0,0.052585]
[1732812928970,0.05267336,95048.0,95047.0,0.053585]
[1732812928971,0.06167336,95048.0,95047.0,0.053585]
[1732812929169,0.06867336,95048.0,95047.0,0.053585]
[1732812930779,0.06867336,95048.0,95047.0,0.001]
[1732812930974,0.42947336,95048.0,95047.0,0.001]
[1732812931177,1.92947336,95048.0,95047.0,0.001]
[1732812933373,1.56867336,95048.0,95047.0,0.053587]
[1732812933579,0.06867336,95048.0,95047.0,0.053587]
[1732812934671,0.06867336,95048.0,95047.0,0.001]
[1732812935277,0.42347336,95048.0,95047.0,0.001]
[1732812935575,0.052595,95036.0,95035.0,0.052593]
[1732812935781,0.41447336,95048.0,95036.0,0.052593]
[1732812935782,0.36188636,95048.0,95036.0,0.052593]
[1732812935972,0.36188636,95048.0,95042.0,0.052589]
[1732812935973,0.17484,95043.0,95042.0,0.052589]
[1732812936276,0.052588,95045.0,95044.0,0.052588]
[1732812936481,0.53672636,95048.0,95047.0,0.052587]
[1732812936676,0.58931236,95048.0,95047.0,0.052587]
[1732812936986,0.41447236,95048.0,95047.0,0.052587]
[1732812937877,0.052592,95040.0,95039.0,0.052591]
[1732812938085,0.36088636,95048.0,95035.0,0.3648]
[1732812938270,0.052588,95045.0,95044.0,0.052587]
[1732812939472,0.054588,95045.0,95044.0,0.052587]
[1732812940185,0.052591,95041.0,95040.0,0.05259]
[1732812940579,0.052591,95040.0,95039.0,0.005]
[1732812940774,0.588231,95040.0,95039.0,0.005]
[1732812941076,0.588231,95040.0,95021.0,0.0322]
[1732812941077,0.052593,95038.0,95037.0,0.052592]
[1732812942183,0.052593,95038.0,95037.0,0.055592]
[1732812942583,0.17484,95038.0,95037.0,0.055592]
[1732812942790,0.227432,95038.0,95037.0,0.055592]
[1732812943483,0.052592,95038.0,95037.0,0.055592]
[1732812944588,0.052592,95038.0,95037.0,0.003]
[1732812944889,0.052592,95037.0,95036.0,0.052593]
[1732812945892,0.052597,95032.0,95031.0,0.052595]
[1732812946093,0.052592,95037.0,95036.0,0.053592]
[1732812947277,0.052592,95037.0,95036.0,0.001]
[1732812947480,0.053592,95037.0,95036.0,0.001]
[1732812947990,0.052597,95028.0,95024.0,0.0315]
[1732812949187,0.053597,95028.0,95024.0,0.0375]
[1732812949385,0.053597,95028.0,95025.0,0.01315834]
[1732812949688,0.053597,95028.0,95024.0,0.0375]
[1732812949689,0.053597,95028.0,95027.0,0.052598]
[1732812950501,0.001,95028.0,95027.0,0.052598]
[1732812950694,0.001,95028.0,95027.0,0.06575583]
[1732812951381,0.052597,95028.0,95027.0,0.06575583]
[1732812951695,0.053597,95028.0,95027.0,0.053598]
[1732812952690,0.053597,95028.0,95027.0,0.001]
[1732812952890,0.052597,95028.0,95027.0,0.057598]
[1732812953083,0.052597,95028.0,95027.0,0.005]
[1732812953290,0.052597,95028.0,95027.0,0.057598]
[1732812953892,0.052597,95028.0,95027.0,0.005]
[1732812954384,0.223597,95028.0,95027.0,0.005]
[1732812954784,1.723597,95028.0,95027.0,0.004]
[1732812955086,0.052599,95024.0,95023.0,0.00012752]
[1732812955494,0.368319,95024.0,95023.0,0.00012752]
[1732812955692,0.368319,95024.0,95004.0,0.25141605]
[1732812955693,0.052602,95019.0,95004.0,0.18821701]
[1732812955890,0.05261,95005.0,95004.0,0.05261]
[1732812956585,0.052613,95000.0,94999.0,0.052613]
[1732812957891,0.15682197,95009.0,94994.0,0.3608]
[1732812958083,0.15682197,95018.0,95015.0,0.052604]
[1732812958288,0.223643,95019.0,95018.0,0.052603]
[1732812958993,0.052603,95019.0,95018.0,0.052603]
[1732812959194,0.223643,95019.0,95018.0,0.052603]
[1732812960500,0.223643,95019.0,95004.0,0.0331]
[1732812960501,0.052604,95016.0,94995.0,0.18821701]
[1732812960687,0.052614,94999.0,94996.0,0.01645126]
[1732812960891,0.12760459,95005.0,94981.0,0.21961701]
[1732812960892,0.052615,94996.0,94982.0,0.052622]
[1732812961096,0.3608,94997.0,94982.0,0.052622]
[1732812961097,0.3608,94997.0,94996.0,0.052615]
[1732812961491,0.3608,94997.0,94996.0,0.06577736]
[1732812961692,0.3608,94997.0,94996.0,0.06906795]
[1732812962394,0.3618,94997.0,94996.0,0.07806795]
[1732812962597,0.001,94997.0,94996.0,0.07806795]
[1732812962899,0.052609,95007.0,95006.0,0.052609]
[1732812963094,0.3608,95010.0,95009.0,0.052608]
[1732812963995,0.3608,95010.0,94988.0,0.01606308]
[1732812964304,0.052614,94997.0,94979.0,0.3608]
[1732812964493,0.32786197,94997.0,94975.0,0.082726]
[1732812964691,0.413419,94988.0,94975.0,0.0301]
[1732812964898,0.413419,94988.0,94982.0,0.052623]
[1732812965289,0.413419,94988.0,94975.0,0.0301]
[1732812966198,0.414419,94988.0,94987.0,0.00909588]
[1732812967006,0.415419,94988.0,94987.0,0.01409588]
[1732812967511,0.052631,94968.0,94966.0,0.18821701]
[1732812967801,0.052624,94980.0,94954.0,0.18850538]
[1732812967802,0.052631,94966.0,94954.0,0.18850538]
[1732812968006,0.7216,94967.0,94941.0,0.114645]
[1732812968007,0.3608,94955.0,94941.0,0.114645]
[1732812968193,0.3608,94942.0,94941.0,0.114645]
[1732812968396,0.413445,94942.0,94941.0,0.0313]
[1732812968596,0.413445,94942.0,94933.0,0.05265]
[1732812968597,0.052646,94941.0,94933.0,0.05265]
[1732812968794,0.3608,94934.0,94933.0,0.05265]
[1732812970008,0.2027429,94934.0,94933.0,0.05265]
[1732812970305,0.2027429,94934.0,94928.0,8.391e-05]
[1732812970306,0.052652,94930.0,94928.0,8.391e-05]
[1732812970500,0.052652,94930.0,94928.0,0.05273691]
[1732812971106,0.2037429,94934.0,94932.0,0.05265]
[1732812971708,0.2047429,94934.0,94932.0,0.05265]
[1732812971901,0.2037429,94934.0,94932.0,0.05265]
[1732812974200,0.2047429,94934.0,94932.0,0.05265]
[1732812976699,0.17112,94938.0,94928.0,8.391e-05]
[1732812976700,0.17112,94938.0,94937.0,0.052648]
[1732812977406,0.36090779,94942.0,94937.0,0.3608]
[1732812977407,0.00010779,94942.0,94937.0,0.3608]
[1732812977604,0.00010779,94942.0,94938.0,0.0635]
[1732812977802,0.00010779,94942.0,94941.0,0.052645]
[1732812978711,0.00110779,94942.0,94941.0,0.052645]
[1732812979312,0.00010779,94942.0,94941.0,0.052645]
[1732812979809,0.05275279,94942.0,94941.0,0.052645]
[1732812979997,0.00010779,94942.0,94928.0,0.36088391]
[1732812980202,0.05265,94933.0,94928.0,0.36088391]
[1732812980899,0.53196,94937.0,94928.0,0.36088391]
[1732812981111,0.052648,94936.0,94935.0,0.052649]
[1732812981505,0.53196,94937.0,94936.0,0.052648]
[1732812981813,0.584608,94937.0,94936.0,0.052648]
[1732812982512,0.53196,94937.0,94936.0,0.052648]
[1732812983114,0.53296,94937.0,94936.0,0.052648]
[1732812983910,0.3618,94937.0,94936.0,0.052648]
[1732812984110,0.001,94937.0,94936.0,0.052648]
[1732812984312,0.00010779,94942.0,94941.0,0.052645]
[1732812984815,0.0327,94965.0,94936.0,0.052648]
[1732812984816,0.17168,94962.0,94942.0,0.052645]
[1732812985007,0.0327,94965.0,94954.0,0.052638]
[1732812985008,0.052637,94957.0,94954.0,0.052638]
[1732812985511,0.052637,94956.0,94954.0,0.052638]
[1732812985818,0.36092783,94955.0,94954.0,0.052638]
[1732812986413,0.36292783,94955.0,94954.0,0.052638]
[1732812986615,0.00212783,94955.0,94954.0,0.052638]
[1732812986918,0.05476583,94955.0,94954.0,0.052638]
[1732812987309,0.05676583,94955.0,94954.0,0.052638]
[1732812989411,0.00412783,94955.0,94954.0,0.052638]
[1732812989718,0.17168,94971.0,94966.0,0.052631]
[1732812990017,0.0158894,94969.0,94966.0,0.052631]
[1732812990612,0.36087443,94967.0,94966.0,0.052631]
[1732812991821,7.443e-05,94967.0,94966.0,0.052631]
[1732812992212,0.41217005,94989.0,94985.0,0.052621]
[1732812992213,0.17168,94986.0,94985.0,0.052621]
[1732812992410,0.17168,94986.0,94976.0,0.052626]
[1732812992411,1.552618,94990.0,94989.0,0.052619]
[1732812992726,1.56931064,94990.0,94989.0,0.052619]
[1732812993219,1.51625261,94990.0,94989.0,0.052619]
[1732812993417,1.50011998,94990.0,94989.0,0.052619]
[1732812994014,1.50611998,94990.0,94989.0,0.053619]
[1732812994407,1.50611998,94990.0,94989.0,0.24187351]
[1732812994812,1.51511998,94990.0,94989.0,0.053619]
[1732812995023,0.01511998,94990.0,94989.0,0.053619]
[1732812995616,0.42853798,94990.0,94989.0,0.001]
[1732812996022,0.052632,94966.0,94965.0,0.052632]
[1732812996224,0.052624,94981.0,94964.0,0.0304]
[1732812996225,0.052632,94965.0,94964.0,0.0304]
[1732812996520,1.5,94965.0,94964.0,0.083033]
[1732812997823,0.052632,94965.0,94964.0,0.083033]
[1732812998024,0.052632,94965.0,94964.0,0.084033]
[1732812999524,0.12525127,94976.0,94975.0,0.052627]
[1732812999724,0.052625,94977.0,94976.0,0.052626]
[1732813001825,0.3608,94980.0,94979.0,0.052624]
[1732813003122,0.3658,94980.0,94979.0,0.2410996]
[1732813004121,0.3658,94980.0,94979.0,0.052624]
[1732813004633,0.3698,94980.0,94979.0,0.052624]
[1732813009341,0.009,94980.0,94979.0,0.052624]
[1732813009630,0.00011998,94990.0,94989.0,0.052619]
[1732813010133,0.17164,95008.0,94986.0,0.3608]
[1732813010134,0.17164,95008.0,94998.0,0.052614]
[1732813010336,0.17164,95008.0,95007.0,0.052609]
[1732813010840,0.29689335,95008.0,95007.0,0.052609]
[1732813011132,0.29689335,95008.0,94999.0,0.052613]
[1732813011133,0.19393947,95009.0,95008.0,0.052608]
[1732813011337,0.12538603,95009.0,95008.0,0.052608]
[1732813011633,0.00013268,95009.0,95008.0,0.052608]
[1732813012031,0.00013268,95009.0,95008.0,0.413408]
[1732813012333,0.00013268,95009.0,95008.0,0.052608]
[1732813012531,0.05274068,95009.0,95008.0,0.052608]
[1732813012929,0.05274068,95009.0,95008.0,0.054608]
[1732813013635,0.05274068,95009.0,95008.0,0.002]
[1732813013830,0.05274068,95009.0,95008.0,0.003]
[1732813014027,1.55274068,95009.0,95008.0,0.003]
[1732813014233,1.70930605,95009.0,95008.0,0.003]
[1732813014438,1.55274068,95009.0,95008.0,0.003]
[1732813014737,1.55274068,95009.0,94995.0,0.03183421]
[1732813014738,0.052612,95001.0,95000.0,0.052613]
[1732813015734,0.05261,95004.0,95003.0,0.052611]
[1732813016238,0.12514403,95007.0,95000.0,0.002]
[1732813016239,0.17775303,95007.0,95006.0,0.052609]
[1732813016535,0.052609,95007.0,95006.0,0.052609]
[1732813018126,0.052612,95002.0,95000.0,0.002]
[1732813018329,0.052615,94999.0,94998.0,0.052613]
[1732813019730,0.052615,94999.0,94998.0,0.054613]
[1732813020430,0.052615,94999.0,94998.0,0.055613]
[1732813022946,0.00013268,95009.0,95001.0,0.052612]
[1732813023133,0.00013268,95009.0,95008.0,0.052608]
[1732813023438,0.05274068,95009.0,95008.0,0.052608]
[1732813025128,0.05474068,95009.0,95008.0,0.052608]
[1732813025551,0.00213268,95009.0,95008.0,0.052608]
[1732813025939,0.00513268,95009.0,95008.0,0.052608]
[1732813026139,0.00513268,95009.0,95008.0,0.06576795]
[1732813026443,0.00513268,95009.0,95008.0,0.052608]
[1732813026647,0.00413268,95009.0,95008.0,0.052608]
[1732813027434,0.00113268,95009.0,95008.0,0.052608]
[1732813027634,0.00313268,95009.0,95008.0,0.052608]
[1732813029031,0.12514403,95021.0,95020.0,0.052602]
[1732813029236,0.3608,95023.0,95015.0,0.3608]
[1732813029441,0.3608,95023.0,95022.0,0.0526]
[1732813030146,0.00011601,95023.0,95022.0,0.0526]
[1732813030534,0.12514403,95030.0,95022.0,0.0526]
[1732813030842,0.12531827,95032.0,95024.0,0.3608]
[1732813031153,0.12536238,95033.0,95024.0,0.3608]
[1732813031340,0.3608,95041.0,95024.0,0.3608]
[1732813031341,0.052594,95034.0,95032.0,0.052595]
[1732813031541,0.3609279,95033.0,95023.0,0.032]
[1732813031740,0.3609279,95033.0,95022.0,0.001]
[1732813031741,0.052598,95027.0,95026.0,0.052598]
[1732813031939,0.12534156,95027.0,95022.0,0.001]
[1732813032142,0.12534156,95027.0,94995.0,0.36093421]
[1732813032143,0.052609,95007.0,94995.0,0.36093421]
[1732813032346,0.0616,95023.0,94995.0,0.00013421]
[1732813032347,0.61392757,95010.0,94995.0,0.00013421]
[1732813032542,0.3608,95002.0,94995.0,0.00013421]
[1732813032743,0.052614,94998.0,94997.0,0.052614]
[1732813033349,0.052614,94998.0,94995.0,0.00013421]
[1732813033350,0.413412,95002.0,95001.0,0.052612]
[1732813034648,0.413412,95002.0,95001.0,0.054612]
[1732813035046,0.052615,94996.0,94995.0,0.00213421]
[1732813035548,0.3608,94999.0,94995.0,0.00213421]
[1732813035741,0.12533575,95015.0,94996.0,0.07746179]
[1732813035946,0.12533575,95015.0,94997.0,0.04646179]
[1732813036245,0.052608,95010.0,95008.0,0.052608]
[1732813036841,0.29693575,95017.0,94997.0,0.0333]
[1732813037143,0.052604,95015.0,95014.0,0.052604]
[1732813037536,0.53244,95018.0,95017.0,0.052603]
[1732813037537,0.53300001,95018.0,95017.0,0.052603]
[1732813037738,0.53244,95018.0,95017.0,0.052603]
[1732813037943,0.224243,95018.0,95017.0,0.052603]
[1732813038453,0.052603,95018.0,95017.0,0.052603]
[1732813038648,0.052603,95018.0,95001.0,0.052612]
[1732813038649,0.29697575,95022.0,95021.0,0.052601]
[1732813038847,0.12533575,95024.0,95023.0,0.0526]
[1732813039149,0.12533575,95024.0,95012.0,0.052606]
[1732813039150,0.3608,95025.0,95024.0,0.052599]
[1732813039355,0.3608,95025.0,95017.0,0.1884627]
[1732813039549,0.3608,95025.0,95024.0,0.052599]
[1732813039752,0.0001279,95033.0,95018.0,0.0302]
[1732813040056,0.052596,95030.0,95029.0,0.052596]
[1732813040243,0.1717679,95033.0,95019.0,0.0632]
[1732813040561,0.12533575,95022.0,95021.0,0.052601]
[1732813041655,0.052598,95026.0,95022.0,0.0526]
[1732813041848,0.052598,95026.0,95019.0,0.0632]
[1732813041849,0.052598,95026.0,95020.0,0.052602]
[1732813042055,0.12547437,95022.0,95021.0,0.052601]
[1732813042250,0.12546804,95022.0,95021.0,0.052601]
[1732813042454,0.009,95024.0,95023.0,0.0526]
[1732813042960,0.052599,95025.0,95024.0,0.052599]
[1732813043249,0.009,95026.0,95019.0,0.0632]
[1732813043452,0.17804795,95020.0,95019.0,0.0632]
[1732813043655,0.15666969,95021.0,95019.0,0.0632]
[1732813043952,0.013,95022.0,95021.0,0.053601]
[1732813044157,0.16966969,95022.0,95021.0,0.053601]
[1732813044654,0.22226969,95022.0,95021.0,0.053601]
[1732813044854,0.21726969,95022.0,95021.0,0.052601]
[1732813045052,0.20926969,95022.0,95021.0,0.052601]
[1732813045850,0.0526,95022.0,95021.0,0.052601]
[1732813046355,0.0576,95022.0,95021.0,0.053601]
[1732813046655,0.005,95022.0,95021.0,0.053601]
[1732813047047,0.013,95022.0,95021.0,0.053601]
[1732813049853,0.3608,95030.0,95029.0,0.052597]
[1732813050855,0.0001279,95033.0,95032.0,0.052595]
[1732813053252,0.0001279,95033.0,95032.0,0.053595]
[1732813053253,0.0071279,95033.0,95032.0,0.053595]
[1732813053653,0.0071279,95033.0,95032.0,0.054595]
[1732813053654,0.0161279,95033.0,95032.0,0.054595]
[1732813055150,0.0161279,95033.0,95032.0,0.07036801]
[1732813055350,0.0687219,95033.0,95032.0,0.07036801]
[1732813056263,0.19416003,95033.0,95032.0,0.07036801]
[1732813056561,0.0687219,95033.0,95032.0,0.07036801]
[1732813056763,0.0161279,95033.0,95032.0,0.07036801]
[1732813057058,0.14156603,95033.0,95032.0,0.07036801]
[1732813057458,0.14147608,95033.0,95032.0,0.07036801]
[1732813057667,0.19407008,95033.0,95032.0,0.07036801]
[1732813058162,0.0687219,95033.0,95032.0,0.07036801]
[1732813058361,0.19407033,95033.0,95032.0,0.07036801]
[1732813059158,0.14147633,95033.0,95032.0,0.07036801]
[1732813061158,0.19407033,95033.0,95032.0,0.07036801]
[1732813062265,0.0687219,95033.0,95032.0,0.07036801]
[1732813063264,0.0687219,95033.0,95019.0,0.0322]
[1732813063265,0.052602,95020.0,95019.0,0.0322]
[1732813063466,0.052602,95020.0,95014.0,0.052605]
[1732813063467,0.052604,95015.0,95014.0,0.052605]
[1732813064162,0.052604,95015.0,95014.0,0.06576404]
[1732813064469,0.052604,95015.0,95014.0,0.052605]
[1732813064964,0.00056001,95020.0,95019.0,0.052602]
[1732813065169,0.00056001,95020.0,95014.0,0.413405]
[1732813065170,0.21931775,95026.0,95014.0,0.413405]
[1732813065355,0.27191475,95029.0,95028.0,0.052597]
[1732813065561,0.052597,95029.0,95028.0,0.052597]
[1732813066066,0.052597,95029.0,95022.0,0.3608]
[1732813066067,0.0526,95023.0,95022.0,0.4134]
[1732813066465,0.27226621,95023.0,95022.0,0.4134]
[1732813067173,0.27726621,95023.0,95022.0,0.4134]
[1732813067372,0.28526621,95023.0,95022.0,0.4144]
[1732813067569,0.0656,95023.0,95022.0,0.4144]
[1732813069775,0.013,95023.0,95022.0,0.4144]
[1732813070267,0.013,95023.0,95022.0,0.42755853]
[1732813070468,0.21983957,95025.0,95024.0,0.052599]
[1732813070678,0.12562266,95030.0,95022.0,0.6656836]
[1732813070881,0.0001279,95033.0,95022.0,0.6656836]
[1732813070882,0.12562287,95031.0,95028.0,0.18920483]
[1732813071182,0.0001279,95033.0,95032.0,0.052595]
[1732813071183,0.12575077,95033.0,95032.0,0.052595]
[1732813071385,0.0001279,95033.0,95032.0,0.052595]
[1732813072982,0.0091279,95033.0,95032.0,0.053595]
[1732813074288,0.0151279,95033.0,95032.0,0.415395]
[1732813074596,0.0151279,95033.0,95032.0,0.42855165]
[1732813075387,0.0151279,95033.0,95032.0,0.42755165]
[1732813075388,0.0071279,95033.0,95032.0,0.42755165]
[1732813075889,0.0021279,95033.0,95032.0,0.42655165]
[1732813076387,0.0021279,95033.0,95032.0,0.42655162]
[1732813076695,0.0021279,95033.0,95030.0,0.031]
[1732813076884,0.0021279,95033.0,95029.0,0.063]
[1732813076885,0.052596,95030.0,95029.0,0.0327]
[1732813077189,0.17813927,95030.0,95029.0,0.0327]
[1732813077494,0.17813867,95030.0,95029.0,0.0327]
[1732813078182,0.052596,95030.0,95029.0,0.0327]
[1732813078987,0.052596,95030.0,95029.0,0.085297]
[1732813080984,0.0001279,95033.0,95032.0,0.052595]
[1732813082294,0.0011279,95033.0,95032.0,0.052595]
[1732813082697,0.12669115,95033.0,95032.0,0.052595]
[1732813082890,0.12669053,95033.0,95032.0,0.052595]
[1732813083194,0.12769053,95033.0,95032.0,0.052595]
[1732813084188,0.0021279,95033.0,95032.0,0.052595]
[1732813084391,0.0021279,95033.0,95029.0,0.0327]
[1732813084594,0.052598,95027.0,95026.0,0.052598]
[1732813085688,0.052598,95027.0,95026.0,0.053598]
[1732813085888,0.052598,95027.0,95026.0,0.055598]
[1732813086395,0.052598,95027.0,95026.0,0.003]
[1732813086599,0.052598,95027.0,95006.0,0.3608]
[1732813086600,0.53550105,95027.0,95006.0,0.3608]
[1732813086893,0.18827302,95010.0,95006.0,0.413408]
[1732813087197,0.413409,95007.0,94999.0,0.0609]
[1732813087493,0.052612,95002.0,95001.0,0.05261]
[1732813087693,0.052612,95002.0,95001.0,0.0131607]
[1732813087894,0.052615,94996.0,94994.0,0.052616]
[1732813088197,0.581255,94996.0,94995.0,0.05274921]
[1732813089295,0.581255,94996.0,94995.0,0.05974921]
[1732813089296,0.582255,94996.0,94995.0,0.05974921]
[1732813089492,0.582255,94996.0,94995.0,0.06174921]
[1732813090896,0.581255,94996.0,94995.0,0.05474921]
[1732813091090,0.581255,94996.0,94995.0,0.05874921]
[1732813092497,0.73758711,94996.0,94995.0,0.05874921]
[1732813093004,0.52864,94996.0,94995.0,0.05874921]
[1732813093198,0.581255,94996.0,94995.0,0.05874921]
[1732813093905,0.413409,95007.0,94995.0,0.00613421]
[1732813094105,0.052615,94996.0,94995.0,0.00613421]
[1732813094501,0.220495,94996.0,94995.0,0.00613421]
[1732813094911,0.220495,94996.0,94995.0,0.05874921]
[1732813096413,0.220495,94996.0,94995.0,0.00613421]
[1732813097605,0.220495,94996.0,94995.0,0.05874921]
[1732813100307,0.3608,94999.0,94995.0,0.00613421]
[1732813100508,0.3608,94999.0,94998.0,0.052614]
[1732813100715,0.05261,95005.0,95004.0,0.05261]
[1732813102716,0.37661108,95007.0,95006.0,0.052609]
[1732813103210,0.37661108,95007.0,95004.0,0.005]
[1732813103211,0.1678,95015.0,95014.0,0.052605]
[1732813103718,0.3608,95017.0,95016.0,0.052604]
[1732813104206,0.413403,95017.0,95016.0,0.052604]
[1732813105220,0.3618,95017.0,95016.0,0.052604]
[1732813105511,0.3628,95017.0,95016.0,0.052604]
[1732813105720,0.415403,95017.0,95016.0,0.052604]
[1732813106614,0.3628,95017.0,95016.0,0.052604]
[1732813107412,0.052607,95012.0,95011.0,0.052606]
[1732813108619,0.3608,95017.0,95016.0,0.052604]
[1732813108920,0.5286,95017.0,95016.0,0.052604]
[1732813109405,0.3608,95017.0,95016.0,0.052604]
[1732813109606,0.0001279,95033.0,95011.0,0.001]
[1732813109607,0.0526,95024.0,95023.0,0.0526]
[1732813109919,0.2204,95024.0,95023.0,0.0526]
[1732813110916,0.23648937,95024.0,95023.0,0.0526]
[1732813111219,0.23648937,95024.0,95023.0,0.0536]
[1732813112320,0.23648937,95024.0,95023.0,0.0566]
[1732813113018,0.23648937,95024.0,95023.0,0.0556]
[1732813114421,0.23648937,95024.0,95023.0,0.003]
[1732813114918,0.91300937,95024.0,95023.0,0.003]
[1732813115217,0.052609,95007.0,95006.0,0.0314]
[1732813115519,0.052609,95007.0,95006.0,0.084009]
[1732813115722,0.220408,95009.0,95008.0,0.052608]
[1732813116726,0.1678,95009.0,95006.0,0.0314]
[1732813116926,0.052609,95006.0,95005.0,0.0309]
[1732813117525,0.052609,95006.0,95005.0,0.08351]
[1732813118517,0.20907834,95006.0,95005.0,0.08351]
[1732813118718,0.20907834,95006.0,95005.0,0.08551]
[1732813119116,0.15646934,95006.0,95005.0,0.08951]
[1732813119417,0.15646934,95008.0,95007.0,0.052609]
[1732813119619,0.20907734,95009.0,95005.0,0.0369]
[1732813119824,0.052608,95009.0,95008.0,0.052608]
[1732813120615,0.15646934,95009.0,95008.0,0.052608]
[1732813120815,0.15651895,95009.0,95005.0,0.0369]
[1732813121025,0.15651895,95010.0,95009.0,0.052608]
[1732813121225,0.15651895,95010.0,95005.0,0.0369]
[1732813121226,0.052607,95011.0,95010.0,0.052607]
[1732813121722,0.1678,95013.0,95012.0,0.052606]
[1732813122812,0.1678,95013.0,95005.0,0.0349]
[1732813122813,0.15653908,95014.0,95013.0,0.052605]
[1732813123018,0.10653908,95016.0,95013.0,0.052605]
[1732813123324,0.10653908,95016.0,95011.0,0.3608]
[1732813123325,0.1678,95022.0,95021.0,0.052601]
[1732813124421,0.44228,95031.0,95016.0,0.0329]
[1732813124422,0.12524517,95030.0,95016.0,0.0329]
[1732813124622,0.02106182,95040.0,95032.0,0.052595]
[1732813124623,0.12524517,95034.0,95032.0,0.052595]
[1732813124825,0.1678,95037.0,95032.0,0.052595]
[1732813125022,0.12524517,95039.0,95032.0,0.052595]
[1732813125223,0.052589,95043.0,95032.0,0.052595]
[1732813125224,0.12524517,95043.0,95032.0,0.06904135]
[1732813125425,0.052588,95044.0,95032.0,0.06575208]
[1732813125630,0.01603041,95039.0,95032.0,0.06904131]
[1732813126127,0.0031279,95033.0,95032.0,0.06904131]
[1732813126932,0.0001279,95033.0,95032.0,0.06904131]
[1732813127133,0.0021279,95033.0,95032.0,0.06904131]
[1732813127937,0.0041279,95033.0,95032.0,0.06904131]
[1732813128240,0.0041279,95033.0,95032.0,0.08508852]
[1732813128543,0.0021279,95033.0,95032.0,0.06864221]
[1732813128736,0.0031279,95033.0,95032.0,0.06864221]
[1732813128932,0.0031279,95033.0,95032.0,0.052595]
[1732813132038,0.0557219,95033.0,95032.0,0.052595]
[1732813132843,0.0031279,95033.0,95032.0,0.052595]
[1732813133235,0.0557219,95033.0,95032.0,0.052595]
[1732813133441,0.052597,95029.0,95028.0,0.052597]
[1732813134544,0.052599,95025.0,95024.0,0.06885067]
[1732813134836,0.3608,95030.0,95021.0,0.0609]
[1732813135028,0.413396,95030.0,95029.0,0.052597]
[1732813135230,0.413396,95030.0,95019.0,0.052601]
[1732813135231,0.052602,95020.0,95019.0,0.052601]
[1732813135437,0.581002,95020.0,95019.0,0.052601]
[1732813136341,0.581002,95020.0,95019.0,0.057601]
[1732813137645,0.581002,95020.0,95019.0,0.059601]
[1732813138040,0.581002,95020.0,95019.0,0.007]
[1732813138340,0.5969541,95020.0,95019.0,0.007]
[1732813142852,0.9126741,95020.0,95019.0,0.007]
[1732813143344,0.9454741,95020.0,95019.0,0.007]
[1732813143747,0.6297541,95020.0,95019.0,0.007]
[1732813144241,0.5969541,95020.0,95019.0,0.007]
[1732813144438,0.4293541,95020.0,95019.0,0.007]
[1732813144652,0.5284,95020.0,95019.0,0.059602]
[1732813145246,0.3608,95020.0,95019.0,0.059602]
[1732813145444,0.3608,95030.0,95029.0,0.052597]
[1732813147248,0.3618,95030.0,95029.0,0.052597]
[1732813147658,0.001,95030.0,95029.0,0.052597]
[1732813148156,0.001,95030.0,95029.0,0.2450047]
[1732813148348,0.001,95030.0,95029.0,0.0690433]
[1732813148647,0.001,95030.0,95029.0,0.0690434]
[1732813149848,0.001,95030.0,95029.0,0.08485149]
[1732813150151,0.052591,95039.0,95032.0,0.052595]
[1732813150348,0.052591,95039.0,95032.0,0.05588429]
[1732813151058,0.0527219,95033.0,95032.0,0.05588423]
[1732813151254,0.0001279,95033.0,95032.0,0.052595]
[1732813151945,0.0001279,95033.0,95032.0,0.05588422]
[1732813152759,0.0021279,95033.0,95032.0,0.05588422]
[1732813153544,0.0031279,95033.0,95032.0,0.05588422]
[1732813154152,0.0031279,95033.0,95032.0,0.06904061]
[1732813157347,0.0031279,95033.0,95032.0,0.05588422]
[1732813157547,0.0031279,95033.0,95032.0,0.0690409]
[1732813158563,0.0031279,95033.0,95032.0,0.06575168]
[1732813159464,0.0031279,95033.0,95032.0,0.0690408]
[1732813160358,0.12516147,95035.0,95032.0,0.0690408]
[1732813160554,0.220188,95047.0,95046.0,0.052587]
[1732813160861,0.052588,95047.0,95046.0,0.052587]
[1732813161249,0.0526716,95047.0,95046.0,0.052587]
[1732813162055,0.0616716,95047.0,95046.0,0.053587]